bitfinex-derivatives/quotes_SOLF0:USTF0_20250527
["timestamp","ask_amount","ask_price","bid_price","bid_amount"]
[1748373214380,0.03964765,178.66,178.63,0.03594818]
[1748373214681,5.595,178.64,178.63,0.03594818]
[1748373215073,0.03964765,178.66,178.63,0.03594818]
[1748373215679,0.03964765,178.66,178.64,5.5948]
[1748373217575,5.63404765,178.66,178.63,5.63114818]
[1748373222182,0.03964765,178.66,178.64,5.5949]
[1748373222377,13.141,178.73,178.63,0.03594818]
[1748373222378,11.1818,178.78,178.63,0.03594818]
[1748373222589,11.1818,178.78,178.64,28.82]
[1748373222590,28.82,178.74,178.64,28.82]
[1748373222774,28.82,178.74,178.64,30.7938]
[1748373223288,5.5929,178.71,178.66,5.5943]
[1748373223583,0.04048862,178.7,178.67,0.03561878]
[1748373224779,0.04048862,178.7,178.69,5.5935]
[1748373225576,0.04048862,178.7,178.68,5.5937]
[1748373225780,0.04048862,178.7,178.67,0.03561878]
[1748373226788,0.04048862,178.7,178.69,5.5935]
[1748373229083,0.04048862,178.7,178.68,5.5937]
[1748373230376,0.04048862,178.7,178.69,5.5935]
[1748373236487,8.862e-05,178.7,178.69,5.5935]
[1748373237489,28.8,178.78,178.77,5.591]
[1748373237688,511.72,178.81,178.68,30.7705]
[1748373237993,5.5905,178.79,178.68,30.7705]
[1748373238489,0.03952594,178.75,178.72,0.03589292]
[1748373239490,0.03952594,178.75,178.74,5.5917]
[1748373240488,0.03952594,178.75,178.72,5.62839292]
[1748373241289,0.03952594,178.75,178.73,5.5921]
[1748373244089,0.03952594,178.75,178.72,5.62829292]
[1748373244485,5.5922,178.73,178.72,0.03589292]
[1748373246195,0.03952594,178.75,178.72,0.03589292]
[1748373247097,0.03952594,178.75,178.74,5.5919]
[1748373248297,2.594e-05,178.75,178.74,5.5919]
[1748373248593,28.8,178.87,178.74,9.81082075]
[1748373248892,28.8,178.87,178.81,5.5897]
[1748373249398,5.5887,178.85,178.82,0.03547961]
[1748373249692,0.04226334,178.85,178.82,0.03547961]
[1748373250298,0.04226334,178.85,178.83,5.5891]
[1748373251397,0.04226334,178.85,178.82,0.03547961]
[1748373252697,5.63076334,178.85,178.82,0.03547961]
[1748373254902,0.04226334,178.85,178.82,0.03547961]
[1748373255503,0.04226334,178.85,178.84,5.5888]
[1748373257296,0.04226334,178.85,178.84,34.3688]
[1748373258693,28.78,178.92,178.88,5.5875]
[1748373259200,34.3664,178.92,178.88,5.5875]
[1748373259600,5.5856,178.95,178.84,38.59082075]
[1748373259803,0.03840169,178.92,178.88,0.03555614]
[1748373260104,0.03840169,178.92,178.9,5.5869]
[1748373260302,0.03840169,178.92,178.88,0.03555614]
[1748373260604,0.03840169,178.92,178.9,5.5866]
[1748373262104,0.03840169,178.92,178.91,5.5866]
[1748373263701,38.47888687,179.06,178.91,28.78]
[1748373263901,34.5967,179.05,178.91,138.3]
[1748373264112,34.5967,179.05,178.93,9.81082075]
[1748373264404,5.5835,179.02,178.97,5.5844]
[1748373264799,5.61889941,179.01,178.98,0.04124362]
[1748373264997,0.03529941,179.01,178.98,5.62544362]
[1748373265302,0.03529941,179.01,178.98,0.04124362]
[1748373266098,0.03529941,179.01,178.98,5.62554362]
[1748373267195,0.03529941,179.01,178.98,0.04124362]
[1748373268000,0.03529941,179.01,179.0,5.5838]
[1748373268205,0.03529941,179.01,178.98,0.04124362]
[1748373268407,0.03529941,179.01,178.99,28.76]
[1748373269307,0.03529941,179.01,178.99,34.3441]
[1748373270010,0.03529941,179.01,179.0,5.5838]
[1748373276011,0.03529941,179.01,178.99,28.76]
[1748373277013,0.03529941,179.01,179.0,5.5838]
[1748373279215,0.03529941,179.01,178.99,34.344]
[1748373280517,0.03529941,179.01,179.0,5.5838]
[1748373281315,0.03529941,179.01,178.99,34.344]
[1748373284314,0.03529941,179.01,178.99,28.76]
[1748373285214,0.03529941,179.01,178.99,34.3439]
[1748373285421,0.03529941,179.01,178.99,28.76]
[1748373285719,0.03529941,179.01,179.0,5.5838]
[1748373286417,0.03529941,179.01,178.99,34.344]
[1748373287720,0.03529941,179.01,179.0,5.5838]
[1748373295821,9.941e-05,179.01,179.0,5.5838]
[1748373296713,1.9701,179.1,179.07,5.5815]
[1748373297224,1.9701,179.1,179.06,5.5818]
[1748373297425,1.9701,179.1,179.04,28.74]
[1748373297929,0.03931755,179.09,179.05,0.04197411]
[1748373298222,5.62041755,179.09,179.05,0.04197411]
[1748373299022,0.03931755,179.09,179.05,5.62397411]
[1748373299224,0.03931755,179.09,179.05,0.04197411]
[1748373300622,38.5901383,179.09,179.05,0.04197411]
[1748373300815,5.5831,179.03,178.96,30.5863]
[1748373301019,9.81082075,179.06,178.96,28.74]
[1748373301215,28.74,179.05,178.96,28.74]
[1748373301421,5.5833,179.02,178.98,5.5842]
[1748373301825,5.619146,179.02,178.98,5.62305429]
[1748373302719,0.035846,179.02,178.89,2.0218]
[1748373302920,9.81082075,179.0,178.91,28.74]
[1748373303220,5.5845,178.98,178.91,28.74]
[1748373303426,30.6603,179.01,178.91,28.74]
[1748373303929,0.03942381,178.98,178.94,0.04088427]
[1748373304325,0.03942381,178.98,178.96,5.5849]
[1748373304726,0.03942381,178.98,178.94,0.04088427]
[1748373305323,5.5848,178.97,178.94,0.04088427]
[1748373306129,5.62392381,178.98,178.94,0.04088427]
[1748373307629,5.62392381,178.98,178.94,5.62648427]
[1748373310031,5.62392381,178.98,178.95,5.5853]
[1748373310430,5.62392381,178.98,178.94,0.04088427]
[1748373311436,5.62392381,178.98,178.94,5.62648427]
[1748373312028,5.5849,178.97,178.94,0.04088427]
[1748373312232,0.03942381,178.98,178.87,28.74]
[1748373312432,5.5862,178.93,178.89,5.587]
[1748373312640,28.74,178.97,178.87,28.74]
[1748373313039,5.5864,178.92,178.88,5.5873]
[1748373313239,0.0423685,178.92,178.88,5.62911804]
[1748373313541,0.0423685,178.92,178.88,0.04181804]
[1748373313743,5.5867,178.91,178.88,5.62931804]
[1748373314435,5.6287685,178.92,178.88,5.62931804]
[1748373316842,0.0423685,178.92,178.88,0.04181804]
[1748373317242,5.5869,178.91,178.88,0.04181804]
[1748373317439,0.0423685,178.92,178.88,0.04181804]
[1748373318039,5.5871,178.9,178.88,0.04181804]
[1748373318342,0.0423685,178.92,178.88,0.04181804]
[1748373318739,5.5869,178.91,178.88,0.04181804]
[1748373320337,5.6287685,178.92,178.88,0.04181804]
[1748373320936,0.0423685,178.92,178.89,5.587]
[1748373321248,0.0423685,178.92,178.88,0.04181804]
[1748373322041,0.0423685,178.92,178.91,5.5866]
[1748373330750,0.0423685,178.92,178.91,34.3266]
[1748373331640,28.74,179.01,178.91,28.74]
[1748373331842,28.74,179.01,178.92,9.81082075]
[1748373332045,32.7504,179.05,178.92,9.81082075]
[1748373332351,5.5834,179.02,178.92,9.81082075]
[1748373332753,0.04029097,178.99,178.95,0.03637431]
[1748373332943,0.04029097,178.99,178.95,28.77637431]
[1748373333145,0.04029097,178.99,178.97,5.5845]
[1748373333341,0.04029097,178.99,178.95,28.77637431]
[1748373333845,0.04029097,178.99,178.97,5.5847]
[1748373334253,0.04029097,178.99,178.95,0.03637431]
[1748373334944,5.585,178.97,178.95,0.03637431]
[1748373335139,0.04029097,178.99,178.95,0.03637431]
[1748373335552,5.62449097,178.99,178.95,0.03637431]
[1748373337249,5.5844,178.98,178.95,0.03637431]
[1748373338451,5.5844,178.98,178.95,5.62157431]
[1748373340250,5.5848,178.97,178.95,5.62157431]
[1748373340449,5.5848,178.97,178.95,0.03637431]
[1748373340851,5.5851,178.96,178.95,0.03637431]
[1748373343156,5.5865,178.92,178.89,5.5872]
[1748373343556,28.74,178.97,178.87,28.74]
[1748373344359,0.04158155,178.94,178.9,0.04015688]
[1748373345462,5.5866,178.91,178.9,0.04015688]
[1748373353363,28.72,178.93,178.9,0.04015688]
[1748373354263,5.5866,178.91,178.9,0.04015688]
[1748373355067,5.5864,178.92,178.9,0.04015688]
[1748373355668,5.5865,178.92,178.9,0.04015688]
[1748373356869,5.5866,178.91,178.9,0.04015688]
[1748373357364,0.04158155,178.94,178.9,0.04015688]
[1748373357566,0.04158155,178.94,178.93,5.586]
[1748373368074,0.04158155,178.94,178.9,0.04015688]
[1748373368075,0.04158155,178.94,178.92,5.5862]
[1748373368274,0.04158155,178.94,178.9,0.04015688]
[1748373368675,0.04158155,178.94,178.93,5.586]
[1748373376582,0.04158155,178.94,178.9,0.04015688]
[1748373377879,0.04158155,178.94,178.92,5.5862]
[1748373381575,0.04158155,178.94,178.9,0.04015688]
[1748373381576,0.04158155,178.94,178.93,5.5861]
[1748373391591,0.04158155,178.94,178.92,5.5862]
[1748373391787,0.04158155,178.94,178.9,0.04015688]
[1748373391992,0.04158155,178.94,178.93,5.5861]
[1748373416813,482.66,179.06,178.99,5.5842]
[1748373417019,6.26685261,179.01,178.93,28.72]
[1748373417322,6.26685261,178.97,178.89,28.72]
[1748373417513,6.26685261,178.95,178.89,28.72]
[1748373417917,0.03705486,178.94,178.9,0.04098274]
[1748373418120,11.85315261,178.93,178.9,5.62778274]
[1748373418323,11.85315261,178.93,178.9,0.04098274]
[1748373418618,6.26685261,178.93,178.9,0.04098274]
[1748373418917,0.03705486,178.94,178.9,0.04098274]
[1748373419326,0.03705486,178.94,178.93,5.5861]
[1748373421317,0.03705486,178.94,178.9,0.04098274]
[1748373421521,6.26685261,178.92,178.9,0.04098274]
[1748373422022,11.85325261,178.92,178.9,0.04098274]
[1748373422212,6.26685261,178.92,178.9,0.04098274]
[1748373422414,5.5867,178.91,178.9,0.04098274]
[1748373422812,6.26685261,178.92,178.82,482.66]
[1748373423009,28.72,178.93,178.81,32.5488]
[1748373423010,6.26685261,178.87,178.81,32.5488]
[1748373423419,6.26685261,178.87,178.86,5.5883]
[1748373423616,6.26685261,178.87,178.81,32.5488]
[1748373423822,0.03624521,178.86,178.82,0.03603787]
[1748373425419,0.03624521,178.86,178.85,5.5886]
[1748373428327,0.03624521,178.86,178.84,5.5888]
[1748373428718,0.03624521,178.86,178.82,0.03603787]
[1748373428922,6.26685261,178.83,178.82,0.03603787]
[1748373429524,6.26685261,178.83,178.82,5.62553787]
[1748373430127,5.62474521,178.86,178.83,5.5891]
[1748373430427,0.03624521,178.86,178.82,0.03603787]
[1748373430626,0.03624521,178.86,178.83,5.5891]
[1748373431530,5.62454521,178.86,178.83,5.5891]
[1748373432022,5.62454521,178.86,178.82,0.03603787]
[1748373433224,0.03624521,178.86,178.82,0.03603787]
[1748373433818,0.03624521,178.86,178.85,5.5886]
[1748373437423,4.521e-05,178.86,178.85,5.5886]
[1748373437628,4.521e-05,178.86,178.85,34.3086]
[1748373439325,4.521e-05,178.86,178.85,5.5886]
[1748373441828,4.521e-05,178.86,178.82,0.03603787]
[1748373442226,4.521e-05,178.86,178.85,5.5886]
[1748373442831,4.521e-05,178.86,178.82,0.03603787]
[1748373443531,5.5888,178.85,178.82,0.03603787]
[1748373444435,4.521e-05,178.86,178.82,0.03603787]
[1748373445031,4.521e-05,178.86,178.83,5.589]
[1748373445332,4.521e-05,178.86,178.82,0.03603787]
[1748373446322,4.521e-05,178.86,178.84,5.5886]
[1748373446531,4.521e-05,178.86,178.82,0.03603787]
[1748373447228,4.521e-05,178.86,178.84,5.5887]
[1748373448334,4.521e-05,178.86,178.85,5.5886]
[1748373451734,4.521e-05,178.86,178.83,5.5889]
[1748373451939,4.521e-05,178.86,178.82,0.03603787]
[1748373452438,5.58854521,178.86,178.82,5.62533787]
[1748373452734,4.521e-05,178.86,178.82,0.03603787]
[1748373452932,4.521e-05,178.86,178.84,5.5887]
[1748373453934,4.521e-05,178.86,178.84,5.5888]
[1748373454334,4.521e-05,178.86,178.82,0.03603787]
[1748373455437,4.521e-05,178.86,178.84,5.5887]
[1748373455837,4.521e-05,178.86,178.82,0.03603787]
[1748373456338,5.58834521,178.86,178.83,5.589]
[1748373457137,4.521e-05,178.86,178.84,5.5887]
[1748373460545,28.72,178.85,178.82,0.03603787]
[1748373460944,5.5892,178.83,178.82,0.03603787]
[1748373461151,11.71598653,178.84,178.73,513.4307]
[1748373461337,11.71598653,178.84,178.76,5.5912]
[1748373462047,9.81148653,178.81,178.69,28.72]
[1748373462247,0.04223938,178.77,178.73,0.04142129]
[1748373463052,5.5916,178.76,178.73,0.04142129]
[1748373463351,0.04223938,178.77,178.73,0.04142129]
[1748373463545,5.5915,178.76,178.73,0.04142129]
[1748373463747,5.5915,178.76,178.73,5.63362129]
[1748373463940,0.04223938,178.77,178.73,5.63362129]
[1748373464142,5.63333938,178.77,178.73,5.63362129]
[1748373464538,5.63333938,178.77,178.74,5.592]
[1748373464950,0.04223938,178.77,178.73,0.04142129]
[1748373465651,0.04223938,178.77,178.74,5.5918]
[1748373465847,0.04223938,178.77,178.73,0.04142129]
[1748373466447,0.04223938,178.77,178.74,5.5918]
[1748373466649,0.04223938,178.77,178.73,0.04142129]
[1748373466851,0.04223938,178.77,178.75,5.5915]
[1748373467051,0.04223938,178.77,178.73,0.04142129]
[1748373467552,0.04223938,178.77,178.76,5.5914]
[1748373470351,0.04223938,178.77,178.73,0.04142129]
[1748373471049,5.63353938,178.77,178.74,5.5917]
[1748373471646,5.5915,178.76,178.73,0.04142129]
[1748373472046,0.04223938,178.77,178.73,0.04142129]
[1748373472558,5.63353938,178.77,178.73,5.63362129]
[1748373472744,0.04223938,178.77,178.73,5.63362129]
[1748373472950,0.04223938,178.77,178.73,0.04142129]
[1748373473157,28.72,178.76,178.73,0.04142129]
[1748373473654,5.592,178.74,178.73,0.04142129]
[1748373474360,9.81148653,178.74,178.65,28.72]
[1748373474858,5.5932,178.71,178.67,5.594]
[1748373475049,34.3132,178.71,178.67,5.594]
[1748373475250,34.3132,178.71,178.67,5.63537627]
[1748373475251,34.35603735,178.71,178.67,5.63537627]
[1748373475551,5.5933,178.7,178.67,5.63537627]
[1748373477572,5.5938,178.69,178.67,0.04137627]
[1748373477771,38.57432388,178.71,178.67,0.04137627]
[1748373478169,5.5933,178.7,178.67,0.04137627]
[1748373478571,38.57432388,178.71,178.67,0.04137627]
[1748373478771,5.5939,178.68,178.67,0.04137627]
[1748373480074,38.57432388,178.71,178.57,28.72]
[1748373480275,1.8418,178.7,178.57,28.72]
[1748373480668,5.5946,178.66,178.57,28.72]
[1748373480870,0.03726587,178.63,178.6,0.03801236]
[1748373481276,0.03726587,178.63,178.62,5.5958]
[1748373482571,28.72,178.66,178.65,5.5948]
[1748373484991,28.72,178.66,178.64,5.63725867]
[1748373486077,0.04089302,178.67,178.64,0.04215867]
[1748373486480,0.04089302,178.67,178.66,5.5945]
[1748373488573,9.302e-05,178.67,178.66,5.5945]
[1748373490177,28.74,178.77,178.66,44.15148653]
[1748373490381,28.74,178.77,178.66,38.55148653]
[1748373490683,34.3313,178.77,178.66,38.55148653]
[1748373490880,34.3313,178.77,178.73,5.592]
[1748373491081,34.3313,178.77,178.66,38.55148653]
[1748373491383,0.0378579,178.73,178.7,0.03990877]
[1748373491585,0.0378579,178.73,178.72,5.5926]
[1748373492178,28.74,178.77,178.76,5.5914]
[1748373492382,28.74,178.77,178.7,28.77990877]
[1748373492383,28.74,178.81,178.71,3.8639]
[1748373493185,0.04140999,178.78,178.74,0.04002478]
[1748373494288,0.04140999,178.78,178.76,5.5912]
[1748373494587,0.04140999,178.78,178.74,0.04002478]
[1748373494991,0.04140999,178.78,178.77,5.5911]
[1748373495490,0.04140999,178.78,178.75,5.5916]
[1748373496384,0.04140999,178.78,178.76,5.5913]
[1748373496579,0.04140999,178.78,178.74,0.04002478]
[1748373496787,0.04140999,178.78,178.74,28.76002478]
[1748373496987,0.04140999,178.78,178.77,5.5911]
[1748373500188,0.04140999,178.78,178.76,5.5913]
[1748373500391,0.04140999,178.78,178.75,2.0003]
[1748373500886,0.04140999,178.78,178.76,5.5914]
[1748373502395,0.04140999,178.78,178.77,5.5911]
[1748373525699,0.04140999,178.78,178.76,5.5913]
[1748373526502,0.04140999,178.78,178.75,5.5916]
[1748373526709,5.63220999,178.78,178.75,5.5916]
[1748373527111,5.63220999,178.78,178.76,5.5914]
[1748373530411,5.63220999,178.78,178.75,5.5916]
[1748373530802,0.04140999,178.78,178.74,0.04002478]
[1748373532011,5.5917,178.75,178.74,0.04002478]
[1748373532204,28.68,178.77,178.66,513.8959]
[1748373532510,5.5924,178.73,178.7,5.5931]
[1748373532909,28.68,178.77,178.66,513.8959]
[1748373533207,0.04228866,178.73,178.71,5.5927]
[1748373538516,5.63468866,178.73,178.71,5.5927]
[1748373539308,0.04228866,178.73,178.71,5.5927]
[1748373540619,0.04228866,178.73,178.72,5.5926]
[1748373540914,0.04228866,178.73,178.7,0.03877677]
[1748373541121,0.04228866,178.73,178.71,5.5929]
[1748373541418,0.04228866,178.73,178.7,0.03877677]
[1748373541816,0.04228866,178.73,178.72,5.5926]
[1748373547221,8.866e-05,178.73,178.72,5.5926]
[1748373558026,8.866e-05,178.73,178.7,0.03877677]
[1748373559034,5.593,178.71,178.7,0.03877677]
[1748373560128,34.2727,178.72,178.7,0.03877677]
[1748373560636,28.68,178.72,178.7,0.03877677]
[1748373560844,28.68,178.72,178.71,5.593]
[1748373562728,8.866e-05,178.73,178.72,5.5926]
[1748373578543,28.66,178.82,178.7,38.5102633]
[1748373578747,28.66,178.82,178.73,9.81148653]
[1748373578945,28.66,178.82,178.74,28.66]
[1748373579252,28.66,178.82,178.79,5.5902]
[1748373579654,28.70197148,178.82,178.8,5.5899]
[1748373580156,28.70197148,178.82,178.79,0.03616111]
[1748373580354,28.70197148,178.82,178.8,5.59]
[1748373581553,28.70197148,178.82,178.79,0.03616111]
[1748373581756,5.5898,178.81,178.79,0.03616111]
[1748373583651,5.5901,178.8,178.79,0.03616111]
[1748373586155,5.5899,178.81,178.79,0.03616111]
[1748373586556,28.70197148,178.82,178.79,0.03616111]
[1748373586864,5.5899,178.81,178.79,0.03616111]
[1748373587653,34.29157148,178.82,178.79,0.03616111]
[1748373587856,28.70197148,178.82,178.79,0.03616111]
[1748373588358,28.70197148,178.82,178.8,5.5901]
[1748373588558,28.70197148,178.82,178.79,0.03616111]
[1748373588955,34.29157148,178.82,178.79,5.62656111]
[1748373589668,28.70197148,178.82,178.79,0.03616111]
[1748373590364,28.70197148,178.82,178.8,5.5899]
[1748373590661,28.70197148,178.82,178.79,0.03616111]
[1748373591253,28.70197148,178.82,178.8,5.5899]
[1748373591650,28.70197148,178.82,178.79,0.03616111]
[1748373592759,28.70197148,178.82,178.8,5.59]
[1748373593355,28.70197148,178.82,178.79,5.62646111]
[1748373593754,28.70197148,178.82,178.79,0.03616111]
[1748373594162,28.70197148,178.82,178.8,5.59]
[1748373596563,28.70197148,178.82,178.81,5.5898]
[1748373600757,0.04197148,178.82,178.81,5.5898]
[1748373601564,7.148e-05,178.82,178.81,5.5898]
[1748373603963,7.148e-05,178.82,178.79,0.03616111]
[1748373604665,5.5901,178.8,178.79,0.03616111]
[1748373605866,7.148e-05,178.82,178.79,0.03616111]
[1748373607172,5.5899,178.81,178.79,0.03616111]
[1748373607472,7.148e-05,178.82,178.79,0.03616111]
[1748373608168,5.58977148,178.82,178.79,5.62646111]
[1748373608567,7.148e-05,178.82,178.79,0.03616111]
[1748373608769,7.148e-05,178.82,178.8,5.5901]
[1748373609874,7.148e-05,178.82,178.79,0.03616111]
[1748373610773,7.148e-05,178.82,178.8,5.5899]
[1748373612173,7.148e-05,178.82,178.81,5.5898]
[1748373612972,7.148e-05,178.82,178.79,0.03616111]
[1748373613370,7.148e-05,178.82,178.8,5.59]
[1748373613878,7.148e-05,178.82,178.81,5.5898]
[1748373618181,7.148e-05,178.82,178.79,0.03616111]
[1748373618878,7.148e-05,178.82,178.8,5.5901]
[1748373620080,7.148e-05,178.82,178.81,5.5898]
[1748373623382,7.148e-05,178.82,178.8,5.5901]
[1748373623586,7.148e-05,178.82,178.79,0.03616111]
[1748373623980,7.148e-05,178.82,178.81,5.5898]
[1748373624685,7.148e-05,178.82,178.8,5.5901]
[1748373624883,7.148e-05,178.82,178.79,0.03616111]
[1748373625885,7.148e-05,178.82,178.81,5.5899]
[1748373628784,7.148e-05,178.82,178.79,0.03616111]
[1748373629786,5.5901,178.81,178.79,5.62666111]
[1748373630193,5.5902,178.8,178.79,0.03616111]
[1748373630396,28.58007148,178.82,178.7,32.585]
[1748373630593,9.81148653,178.81,178.7,28.58]
[1748373630894,5.592,178.75,178.66,30.6137]
[1748373631396,5.5916,178.76,178.73,5.5924]
[1748373631590,5.6311678,178.76,178.73,5.63429106]
[1748373632597,0.0395678,178.76,178.73,0.04189106]
[1748373636496,5.5919,178.75,178.73,0.04189106]
[1748373636698,0.0395678,178.76,178.73,0.04189106]
[1748373637203,5.6311678,178.76,178.73,5.63399106]
[1748373638305,5.5918,178.75,178.73,5.63399106]
[1748373639106,5.6310678,178.76,178.73,5.63399106]
[1748373639307,0.0395678,178.76,178.73,0.04189106]
[1748373640405,5.5921,178.74,178.73,0.04189106]
[1748373641003,5.5935,178.7,178.64,1.8787]
[1748373641201,28.6,178.71,178.6,32.3217]
[1748373641608,5.5935,178.7,178.67,5.594]
[1748373642105,5.6319014,178.7,178.67,0.04304729]
[1748373642506,0.0384014,178.7,178.67,0.04304729]
[1748373642709,3.9054014,178.7,178.67,0.04304729]
[1748373642906,13.71688793,178.7,178.67,0.04304729]
[1748373643206,13.71688793,178.7,178.63,5.5954]
[1748373643406,13.71688793,178.7,178.6,28.6]
[1748373643611,13.71688793,178.7,178.63,5.5955]
[1748373644016,13.71688793,178.7,178.65,0.0415572]
[1748373644912,3.9054014,178.7,178.65,0.0415572]
[1748373645509,3.9054014,178.7,178.67,5.594]
[1748373645705,1.9867014,178.7,178.65,0.0415572]
[1748373646116,1.9867014,178.7,178.68,5.5937]
[1748373646313,0.0384014,178.7,178.65,0.0415572]
[1748373646815,0.0384014,178.7,178.69,5.5936]
[1748373649914,0.0384014,178.7,178.65,0.0415572]
[1748373650116,2.0668014,178.7,178.65,0.0415572]
[1748373650309,5.5943,178.67,178.65,0.0415572]
[1748373650817,5.5946,178.66,178.65,0.0415572]
[1748373656920,2.0668014,178.7,178.65,0.0415572]
[1748373657109,0.0384014,178.7,178.65,0.0415572]
[1748373657313,5.5941,178.68,178.65,5.6362572]
[1748373657720,0.0384014,178.7,178.65,5.6362572]
[1748373658320,5.5942,178.68,178.65,5.6362572]
[1748373660623,0.0384014,178.7,178.65,0.0415572]
[1748373661212,5.5941,178.68,178.65,5.6363572]
[1748373661623,5.5941,178.68,178.65,0.0415572]
[1748373662622,5.5944,178.67,178.65,0.0415572]
[1748373663023,0.0384014,178.7,178.65,5.6362572]
[1748373663220,5.5941,178.68,178.65,5.6362572]
[1748373663924,5.5937,178.69,178.66,5.5945]
[1748373664123,0.0384014,178.7,178.65,0.0415572]
[1748373664517,0.0384014,178.7,178.69,5.5936]
[1748373671832,1.4e-06,178.7,178.69,5.5936]
[1748373675433,28.58,178.8,178.77,5.591]
[1748373675628,28.58,178.8,178.71,38.39148653]
[1748373675831,28.58,178.8,178.72,4.029]
[1748373676225,28.58,178.8,178.73,1.8447]
[1748373676427,0.03719964,178.78,178.75,0.03914744]
[1748373677937,0.03719964,178.78,178.77,5.5911]
[1748373686750,0.03719964,178.78,178.75,28.61914744]
[1748373686751,0.03719964,178.78,178.76,5.5913]
[1748373686951,0.03719964,178.78,178.75,28.61914744]
[1748373688057,0.03719964,178.78,178.77,5.5911]
[1748373688058,9.964e-05,178.78,178.77,5.5911]
[1748373693861,9.964e-05,178.78,178.75,0.03914744]
[1748373694361,5.5914,178.76,178.75,0.03914744]
[1748373695164,5.5912,178.77,178.75,0.03914744]
[1748373696664,1.84609964,178.78,178.75,0.03914744]
[1748373696665,7.43699964,178.78,178.75,0.03914744]
[1748373697371,9.964e-05,178.78,178.75,0.03914744]
[1748373697765,5.59109964,178.78,178.75,5.63074744]
[1748373699666,9.964e-05,178.78,178.75,0.03914744]
[1748373700064,5.5914,178.76,178.75,0.03914744]
[1748373700264,34.1314,178.76,178.75,0.03914744]
[1748373707074,28.54,178.76,178.75,0.03914744]
[1748373707578,34.1314,178.76,178.75,0.03914744]
[1748373713179,28.54,178.76,178.75,5.63084744]
[1748373716987,28.54,178.76,178.75,0.03914744]
[1748373718179,34.1314,178.76,178.75,0.03914744]
[1748373719983,28.54,178.76,178.75,0.03914744]
[1748373720380,9.964e-05,178.78,178.75,0.03914744]
[1748373721477,9.964e-05,178.78,178.77,5.5911]
[1748373722080,9.964e-05,178.78,178.76,5.5913]
[1748373722281,9.964e-05,178.78,178.75,0.03914744]
[1748373723279,9.964e-05,178.78,178.77,5.5911]
[1748373725579,9.964e-05,178.78,178.76,5.5913]
[1748373725781,9.964e-05,178.78,178.75,0.03914744]
[1748373726688,5.5914,178.76,178.75,0.03914744]
[1748373730789,5.5912,178.77,178.75,0.03914744]
[1748373730986,9.964e-05,178.78,178.75,0.03914744]
[1748373732291,5.5914,178.76,178.75,0.03914744]
[1748373734090,34.1314,178.76,178.75,0.03914744]
[1748373735586,28.54,178.76,178.75,0.03914744]
[1748373736194,34.1314,178.76,178.75,0.03914744]
[1748373737995,5.5914,178.76,178.75,0.03914744]
[1748373738393,5.5929,178.72,178.65,30.5504]
[1748373738597,28.54,178.75,178.68,5.5938]
[1748373739591,0.03846659,178.73,178.7,0.03958479]
[1748373739999,5.5929,178.72,178.7,0.03958479]
[1748373740196,0.03846659,178.73,178.7,0.03958479]
[1748373740695,5.63086659,178.73,178.7,0.03958479]
[1748373741499,0.03846659,178.73,178.7,0.03958479]
[1748373742000,0.03846659,178.73,178.71,5.5928]
[1748373743002,0.03846659,178.73,178.72,5.5927]
[1748373747012,0.03846659,178.73,178.71,5.5929]
[1748373748010,0.03846659,178.73,178.7,0.03958479]
[1748373748810,0.03846659,178.73,178.72,5.5927]
[1748373754518,28.52,178.83,178.72,5.6]
[1748373754719,28.52,178.83,178.72,109.12]
[1748373754918,28.52,178.83,178.81,5.5898]
[1748373755713,0.03746779,178.84,178.82,5.5896]
[1748373756115,0.03746779,178.84,178.83,5.5892]
[1748373757420,0.03746779,178.84,178.82,5.5894]
[1748373757615,0.03746779,178.84,178.8,0.03840103]
[1748373758620,28.52,178.83,178.8,0.03840103]
[1748373759016,5.5899,178.81,178.8,0.03840103]
[1748373760522,5.5919,178.75,178.72,28.52]
[1748373760722,28.52,178.79,178.72,34.1125]
[1748373760923,28.52,178.79,178.72,5.5925]
[1748373761622,5.5917,178.75,178.74,0.0390567]
[1748373762421,5.5915,178.76,178.74,0.0390567]
[1748373763624,5.5917,178.75,178.74,0.0390567]
[1748373764025,0.03945036,178.77,178.74,0.0390567]
[1748373764420,5.5916,178.76,178.74,0.0390567]
[1748373766122,0.03945036,178.77,178.74,0.0390567]
[1748373767226,5.5917,178.75,178.74,0.0390567]
[1748373769827,0.03945036,178.77,178.74,5.6310567]
[1748373770926,5.63075036,178.77,178.74,5.6310567]
[1748373771523,0.03945036,178.77,178.74,0.0390567]